[Event "Titled Tuesday Blitz May 9 Late 2023"]
[White "Sliwicki, Damian"]
[Black "Papayan, Oleg"]
[WhiteFideId "1127128"]
[BlackFideId "4193911"]
[WhiteElo "2030"]
[BlackElo "2171"]
[Result "0-1"]
[Round "06"]
[TimeControl "180+2"]
[Date "2023.05.09"]
[WhiteClock "0:00:00"]
[BlackClock "0:00:42"]

1. d4 {[%clk 0:02:39]}  c5 {[%clk 0:02:54]} 2. d5 {[%clk 0:02:35]}  g6 {[%clk 0:02:51]} 3. Nc3 {[%clk 0:02:34]}  Bg7 {[%clk 0:02:51]} 4. e4 {[%clk 0:02:34]}  d6 {[%clk 0:02:47]} 5. h4 {[%clk 0:02:23]}  h5 {[%clk 0:02:46]} 6. Bb5+ {[%clk 0:02:20]}  Bd7 {[%clk 0:02:45]} 7. Qe2 {[%clk 0:02:08]}  a6 {[%clk 0:02:45]} 8. Bxd7+ {[%clk 0:02:08]}  Nxd7 {[%clk 0:02:46]} 9. Bd2 {[%clk 0:02:06]}  b5 {[%clk 0:02:47]} 10. f4 {[%clk 0:01:51]}  b4 {[%clk 0:02:46]} 11. Nd1 {[%clk 0:01:48]}  Ngf6 {[%clk 0:02:47]} 12. Nf3 {[%clk 0:01:45]}  Ng4 {[%clk 0:02:47]} 13. c3 {[%clk 0:01:41]}  a5 {[%clk 0:02:46]} 14. O-O {[%clk 0:01:25]}  Ndf6 {[%clk 0:02:45]} 15. c4 {[%clk 0:01:18]}  Nd7 {[%clk 0:02:35]} 16. e5 {[%clk 0:01:04]}  dxe5 {[%clk 0:02:34]} 17. fxe5 {[%clk 0:01:05]}  Ndxe5 {[%clk 0:02:32]} 18. Nxe5 {[%clk 0:01:05]}  Bxe5 {[%clk 0:02:32]} 19. Nf2 {[%clk 0:01:00]}  Bd4 {[%clk 0:02:28]} 20. Kh1 {[%clk 0:00:53]}  e5 {[%clk 0:02:15]} 21. Bg5 {[%clk 0:00:38]}  Qd7 {[%clk 0:02:05]} 22. Ne4 {[%clk 0:00:25]}  f5 {[%clk 0:01:53]} 23. Qxg4 {[%clk 0:00:20]}  hxg4 {[%clk 0:01:42]} 24. Nf6+ {[%clk 0:00:21]}  Kd8 {[%clk 0:01:42]} 25. Nxd7+ {[%clk 0:00:19]}  Kxd7 {[%clk 0:01:43]} 26. Rae1 {[%clk 0:00:17]}  Rh5 {[%clk 0:01:35]} 27. g3 {[%clk 0:00:15]}  Bxb2 {[%clk 0:01:34]} 28. Bf6 {[%clk 0:00:14]}  Re8 {[%clk 0:01:30]} 29. Re2 {[%clk 0:00:14]}  Bd4 {[%clk 0:01:30]} 30. Rfe1 {[%clk 0:00:14]}  Rh7 {[%clk 0:01:25]} 31. Kg2 {[%clk 0:00:06]}  Rf7 {[%clk 0:01:24]} 32. Bg5 {[%clk 0:00:04]}  a4 {[%clk 0:01:23]} 33. Rb1 {[%clk 0:00:04]}  f4 {[%clk 0:01:09]} 34. gxf4 {[%clk 0:00:03]}  exf4 {[%clk 0:01:10]} 35. Rxe8 {[%clk 0:00:02]}  Kxe8 {[%clk 0:01:10]} 36. Re1+ {[%clk 0:00:01]}  Kd7 {[%clk 0:01:11]} 37. Re6 {[%clk 0:00:01]}  f3+ {[%clk 0:01:08]} 38. Kf1 {[%clk 0:00:01]}  g3 {[%clk 0:01:07]} 39. Be3 {[%clk 0:00:00]}  f2 {[%clk 0:00:42]} 0-1


[Site "https://www.chess.com"]

[Event "Titled Tuesday Blitz May 9 Late 2023"]
[White "rikchessmx"]
[Black "sebastianmarinp"]
[WhiteElo "2199"]
[BlackElo "2433"]
[Result "1-0"]
[Round "06"]
[TimeControl "180+2"]
[Date "2023.05.09"]
[WhiteClock "0:02:33"]
[BlackClock "0:00:33"]

1. e4 {[%clk 0:02:59]}  e5 {[%clk 0:02:59]} 2. Nf3 {[%clk 0:02:59]}  Nc6 {[%clk 0:02:59]} 3. Bb5 {[%clk 0:03:00]}  a6 {[%clk 0:02:59]} 4. Ba4 {[%clk 0:03:00]}  Nf6 {[%clk 0:02:58]} 5. O-O {[%clk 0:03:00]}  b5 {[%clk 0:02:59]} 6. Bb3 {[%clk 0:03:00]}  Bb7 {[%clk 0:02:59]} 7. d3 {[%clk 0:02:59]}  Be7 {[%clk 0:02:57]} 8. a4 {[%clk 0:02:59]}  O-O {[%clk 0:02:55]} 9. Nc3 {[%clk 0:02:59]}  Na5 {[%clk 0:02:54]} 10. Ba2 {[%clk 0:02:58]}  b4 {[%clk 0:02:53]} 11. Ne2 {[%clk 0:02:58]}  d5 {[%clk 0:02:49]} 12. exd5 {[%clk 0:02:56]}  Nxd5 {[%clk 0:02:46]} 13. Nxe5 {[%clk 0:02:53]}  Bd6 {[%clk 0:02:43]} 14. Nf3 {[%clk 0:02:52]}  c5 {[%clk 0:02:31]} 15. Ng3 {[%clk 0:02:48]}  Nf4 {[%clk 0:02:25]} 16. Ne4 {[%clk 0:02:43]}  Re8 {[%clk 0:01:50]} 17. Nfg5 {[%clk 0:02:40]}  b3 {[%clk 0:01:27]} 18. cxb3 {[%clk 0:02:36]}  h6 {[%clk 0:01:21]} 19. Nxf7 {[%clk 0:02:36]}  Kxf7 {[%clk 0:01:10]} 20. b4+ {[%clk 0:02:36]}  Bd5 {[%clk 0:00:51]} 21. Nxd6+ {[%clk 0:02:33]}  Qxd6 {[%clk 0:00:33]} 22. Bxf4 {[%clk 0:02:33]} 1-0


[Site "https://www.chess.com"]

[Event "Titled Tuesday Blitz May 9 Late 2023"]
[White "Joubert, Dantelle"]
[Black "D`Arruda, Ricardo D."]
[WhiteFideId "14310813"]
[BlackFideId "100692"]
[WhiteElo "1507"]
[BlackElo "2425"]
[Result "1-0"]
[Round "06"]
[TimeControl "180+2"]
[Date "2023.05.09"]
[WhiteClock "0:01:31"]
[BlackClock "0:01:19"]

1. d4 {[%clk 0:02:57]}  Nf6 {[%clk 0:01:40]} 2. c4 {[%clk 0:02:55]}  e5 {[%clk 0:01:41]} 3. dxe5 {[%clk 0:02:54]}  Ne4 {[%clk 0:01:41]} 4. Nf3 {[%clk 0:02:52]}  Nc6 {[%clk 0:01:41]} 5. Nbd2 {[%clk 0:02:45]}  Nc5 {[%clk 0:01:41]} 6. e3 {[%clk 0:02:24]}  d6 {[%clk 0:01:41]} 7. exd6 {[%clk 0:02:23]}  Bxd6 {[%clk 0:01:41]} 8. Be2 {[%clk 0:02:22]}  Qf6 {[%clk 0:01:42]} 9. O-O {[%clk 0:02:21]}  Bf5 {[%clk 0:01:43]} 10. Nb3 {[%clk 0:02:09]}  O-O-O {[%clk 0:01:43]} 11. Nxc5 {[%clk 0:02:05]}  Bxc5 {[%clk 0:01:44]} 12. Qa4 {[%clk 0:02:04]}  Be4 {[%clk 0:01:40]} 13. Qb5 {[%clk 0:01:47]}  b6 {[%clk 0:01:36]} 14. a4 {[%clk 0:01:38]}  Kb7 {[%clk 0:01:35]} 15. a5 {[%clk 0:01:33]}  a6 {[%clk 0:01:34]} 16. Qb3 {[%clk 0:01:33]}  Nxa5 {[%clk 0:01:33]} 17. Rxa5 {[%clk 0:01:32]}  Rd7 {[%clk 0:01:19]} 18. Rxc5 {[%clk 0:01:31]} 1-0


[Site "https://www.chess.com"]

[Event "Titled Tuesday Blitz May 9 Late 2023"]
[White "Marcziter, Dmitrii"]
[Black "lluiss"]
[WhiteFideId "13900765"]
[WhiteElo "2162"]
[BlackElo "2289"]
[Result "1-0"]
[Round "06"]
[TimeControl "180+2"]
[Date "2023.05.09"]
[WhiteClock "0:00:13"]
[BlackClock "0:00:00"]

1. e4 {[%clk 0:03:00]}  c5 {[%clk 0:02:59]} 2. Nc3 {[%clk 0:02:59]}  d6 {[%clk 0:02:59]} 3. f4 {[%clk 0:02:59]}  g6 {[%clk 0:02:57]} 4. Nf3 {[%clk 0:03:00]}  Bg7 {[%clk 0:02:55]} 5. Bc4 {[%clk 0:03:00]}  Nc6 {[%clk 0:02:54]} 6. d3 {[%clk 0:02:47]}  e6 {[%clk 0:02:53]} 7. O-O {[%clk 0:02:46]}  Nge7 {[%clk 0:02:53]} 8. Kh1 {[%clk 0:02:46]}  h6 {[%clk 0:02:53]} 9. f5 {[%clk 0:02:45]}  exf5 {[%clk 0:02:52]} 10. Nh4 {[%clk 0:02:39]}  Ne5 {[%clk 0:02:44]} 11. Bb3 {[%clk 0:02:35]}  O-O {[%clk 0:02:17]} 12. Qe1 {[%clk 0:02:25]}  fxe4 {[%clk 0:02:07]} 13. Nxe4 {[%clk 0:02:20]}  Nf5 {[%clk 0:02:06]} 14. Nxf5 {[%clk 0:02:17]}  Bxf5 {[%clk 0:02:06]} 15. Bd5 {[%clk 0:02:10]}  Rb8 {[%clk 0:01:46]} 16. Qg3 {[%clk 0:02:05]}  b5 {[%clk 0:01:34]} 17. Bf4 {[%clk 0:01:58]}  Kh8 {[%clk 0:01:05]} 18. Rae1 {[%clk 0:01:47]}  Qd7 {[%clk 0:00:55]} 19. c3 {[%clk 0:01:44]}  Rbe8 {[%clk 0:00:54]} 20. d4 {[%clk 0:01:36]}  Nc4 {[%clk 0:00:50]} 21. Nxd6 {[%clk 0:01:31]}  Rxe1 {[%clk 0:00:43]} 22. Rxe1 {[%clk 0:01:28]}  Nxb2 {[%clk 0:00:43]} 23. Qh4 {[%clk 0:01:05]}  Kg8 {[%clk 0:00:36]} 24. Re7 {[%clk 0:00:54]}  g5 {[%clk 0:00:32]} 25. Qe1 {[%clk 0:00:40]}  Qd8 {[%clk 0:00:20]} 26. Bxf7+ {[%clk 0:00:33]}  Kh8 {[%clk 0:00:17]} 27. Be5 {[%clk 0:00:23]}  Nd3 {[%clk 0:00:13]} 28. Bxg7+ {[%clk 0:00:17]}  Kxg7 {[%clk 0:00:13]} 29. Nxf5+ {[%clk 0:00:16]}  Kh8 {[%clk 0:00:00]} 30. Qe4 {[%clk 0:00:13]} 1-0


[Site "https://www.chess.com"]

[Event "Titled Tuesday Blitz May 9 Late 2023"]
[White "Figorito, Nick"]
[Black "Boder, Jan"]
[WhiteFideId "30923689"]
[BlackFideId "16243226"]
[WhiteElo "2358"]
[BlackElo "2241"]
[Result "1-0"]
[Round "06"]
[TimeControl "180+2"]
[Date "2023.05.09"]
[WhiteClock "0:00:27"]
[BlackClock "0:00:00"]

1. Nf3 {[%clk 0:03:00]}  c5 {[%clk 0:02:58]} 2. g3 {[%clk 0:03:01]}  g6 {[%clk 0:02:58]} 3. Bg2 {[%clk 0:03:01]}  Bg7 {[%clk 0:02:57]} 4. O-O {[%clk 0:03:02]}  Nc6 {[%clk 0:02:57]} 5. c4 {[%clk 0:03:02]}  e5 {[%clk 0:02:55]} 6. Nc3 {[%clk 0:03:03]}  d6 {[%clk 0:02:56]} 7. d3 {[%clk 0:03:03]}  Nge7 {[%clk 0:02:56]} 8. a3 {[%clk 0:03:01]}  O-O {[%clk 0:02:54]} 9. Rb1 {[%clk 0:03:02]}  a5 {[%clk 0:02:54]} 10. Ne1 {[%clk 0:03:01]}  Be6 {[%clk 0:02:53]} 11. e4 {[%clk 0:03:00]}  Nd4 {[%clk 0:02:47]} 12. Nc2 {[%clk 0:02:59]}  Nb3 {[%clk 0:02:25]} 13. Ne3 {[%clk 0:02:54]}  Nd4 {[%clk 0:02:18]} 14. Nc2 {[%clk 0:02:51]}  Nec6 {[%clk 0:02:10]} 15. Nxd4 {[%clk 0:02:39]}  Nxd4 {[%clk 0:02:04]} 16. b4 {[%clk 0:02:33]}  axb4 {[%clk 0:01:54]} 17. axb4 {[%clk 0:02:33]}  b6 {[%clk 0:01:54]} 18. Be3 {[%clk 0:02:25]}  Ra3 {[%clk 0:01:24]} 19. Bxd4 {[%clk 0:02:16]}  cxd4 {[%clk 0:01:15]} 20. Nb5 {[%clk 0:02:16]}  Ra8 {[%clk 0:01:04]} 21. Ra1 {[%clk 0:02:13]}  Qe7 {[%clk 0:00:56]} 22. Qb3 {[%clk 0:02:04]}  Rfc8 {[%clk 0:00:46]} 23. Ra3 {[%clk 0:01:49]}  Rxa3 {[%clk 0:00:31]} 24. Qxa3 {[%clk 0:01:50]}  Bd7 {[%clk 0:00:31]} 25. Qa7 {[%clk 0:01:27]}  Bf8 {[%clk 0:00:24]} 26. Qxb6 {[%clk 0:01:22]}  Bxb5 {[%clk 0:00:13]} 27. Qxb5 {[%clk 0:01:23]}  Qc7 {[%clk 0:00:14]} 28. Ra1 {[%clk 0:01:18]}  Rb8 {[%clk 0:00:14]} 29. Qa4 {[%clk 0:01:13]}  d5 {[%clk 0:00:12]} 30. c5 {[%clk 0:01:04]}  Qb7 {[%clk 0:00:06]} 31. exd5 {[%clk 0:00:55]}  Qxb4 {[%clk 0:00:06]} 32. Qxb4 {[%clk 0:00:55]}  Rxb4 {[%clk 0:00:07]} 33. Rc1 {[%clk 0:00:48]}  Rb3 {[%clk 0:00:06]} 34. c6 {[%clk 0:00:45]}  Bd6 {[%clk 0:00:02]} 35. Bf1 {[%clk 0:00:32]}  Rc3 {[%clk 0:00:01]} 36. Rb1 {[%clk 0:00:27]}  Kf8 {[%clk 0:00:00]} 37. Rb7 {[%clk 0:00:27]} 1-0


[Site "https://www.chess.com"]

[Event "Titled Tuesday Blitz May 9 Late 2023"]
[White "mjelcic"]
[Black "Ansh M Shah"]
[BlackFideId "25033379"]
[WhiteElo "2223"]
[BlackElo "2084"]
[Result "0-1"]
[Round "06"]
[TimeControl "180+2"]
[Date "2023.05.09"]
[WhiteClock "0:00:00"]
[BlackClock "0:00:03"]

1. c4 {[%clk 0:03:00]}  Nf6 {[%clk 0:02:59]} 2. g3 {[%clk 0:03:01]}  e6 {[%clk 0:02:59]} 3. Bg2 {[%clk 0:03:01]}  d5 {[%clk 0:03:00]} 4. Nf3 {[%clk 0:02:59]}  dxc4 {[%clk 0:03:00]} 5. Na3 {[%clk 0:02:58]}  a6 {[%clk 0:03:00]} 6. Nxc4 {[%clk 0:02:57]}  b5 {[%clk 0:03:01]} 7. Nce5 {[%clk 0:02:57]}  Bb7 {[%clk 0:03:00]} 8. O-O {[%clk 0:02:56]}  Nbd7 {[%clk 0:03:00]} 9. Nxd7 {[%clk 0:02:52]}  Qxd7 {[%clk 0:03:00]} 10. Ne5 {[%clk 0:02:31]}  Qc8 {[%clk 0:02:59]} 11. Nc6 {[%clk 0:02:18]}  Bd6 {[%clk 0:02:52]} 12. Qc2 {[%clk 0:02:05]}  O-O {[%clk 0:02:47]} 13. d3 {[%clk 0:02:05]}  Nd5 {[%clk 0:02:46]} 14. Bd2 {[%clk 0:01:58]}  Qd7 {[%clk 0:02:40]} 15. Rac1 {[%clk 0:01:55]}  Rae8 {[%clk 0:02:15]} 16. a3 {[%clk 0:01:48]}  Ba8 {[%clk 0:02:10]} 17. b4 {[%clk 0:01:33]}  Ne7 {[%clk 0:01:45]} 18. Be3 {[%clk 0:01:16]}  Nf5 {[%clk 0:01:23]} 19. Bd2 {[%clk 0:01:08]}  h6 {[%clk 0:00:59]} 20. Rfd1 {[%clk 0:00:47]}  Qc8 {[%clk 0:00:48]} 21. Bc3 {[%clk 0:00:43]}  Bb7 {[%clk 0:00:46]} 22. Bb2 {[%clk 0:00:42]}  Qa8 {[%clk 0:00:44]} 23. Qc3 {[%clk 0:00:40]}  f6 {[%clk 0:00:41]} 24. Qb3 {[%clk 0:00:39]}  Kh8 {[%clk 0:00:37]} 25. d4 {[%clk 0:00:30]}  Ne7 {[%clk 0:00:27]} 26. Qc2 {[%clk 0:00:28]}  Nd5 {[%clk 0:00:20]} 27. e4 {[%clk 0:00:23]}  Nb6 {[%clk 0:00:17]} 28. e5 {[%clk 0:00:20]}  Be7 {[%clk 0:00:16]} 29. Qe4 {[%clk 0:00:17]}  Nd5 {[%clk 0:00:15]} 30. Na5 {[%clk 0:00:15]}  f5 {[%clk 0:00:11]} 31. Qf3 {[%clk 0:00:14]}  Rc8 {[%clk 0:00:09]} 32. Nxb7 {[%clk 0:00:14]}  Qxb7 {[%clk 0:00:10]} 33. Rc2 {[%clk 0:00:11]}  Rfd8 {[%clk 0:00:11]} 34. Rdc1 {[%clk 0:00:11]}  c6 {[%clk 0:00:11]} 35. Qd1 {[%clk 0:00:09]}  Rc7 {[%clk 0:00:11]} 36. Bxd5 {[%clk 0:00:08]}  Rxd5 {[%clk 0:00:10]} 37. Qd3 {[%clk 0:00:08]}  Qb6 {[%clk 0:00:09]} 38. Qe3 {[%clk 0:00:08]}  Bg5 {[%clk 0:00:06]} 39. f4 {[%clk 0:00:08]}  Be7 {[%clk 0:00:07]} 40. Kg2 {[%clk 0:00:09]}  Rd8 {[%clk 0:00:07]} 41. Rd1 {[%clk 0:00:08]}  Qb7 {[%clk 0:00:08]} 42. Qf3 {[%clk 0:00:08]}  Rd5 {[%clk 0:00:07]} 43. Rdc1 {[%clk 0:00:08]}  Qb6 {[%clk 0:00:07]} 44. Ba1 {[%clk 0:00:07]}  Rd8 {[%clk 0:00:06]} 45. Bb2 {[%clk 0:00:06]}  Kg8 {[%clk 0:00:07]} 46. Rxc6 {[%clk 0:00:06]}  Rxc6 {[%clk 0:00:06]} 47. Qxc6 {[%clk 0:00:07]}  Qa7 {[%clk 0:00:02]} 48. Qxe6+ {[%clk 0:00:06]}  Kh8 {[%clk 0:00:03]} 49. Rc8 {[%clk 0:00:04]}  Qb7+ {[%clk 0:00:03]} 50. d5 {[%clk 0:00:00]}  Qxc8 {[%clk 0:00:03]} 0-1


[Site "https://www.chess.com"]

[Event "Titled Tuesday Blitz May 9 Late 2023"]
[White "Chemin, Justo Reinaldo"]
[Black "FuenfgegenWilly"]
[WhiteFideId "2101580"]
[WhiteElo "1940"]
[BlackElo "2320"]
[Result "0-1"]
[Round "06"]
[TimeControl "180+2"]
[Date "2023.05.09"]
[WhiteClock "0:00:00"]
[BlackClock "0:00:15"]

1. d4 {[%clk 0:02:59]}  d5 {[%clk 0:02:31]} 2. Nf3 {[%clk 0:02:56]}  Nc6 {[%clk 0:02:28]} 3. e3 {[%clk 0:02:55]}  Bg4 {[%clk 0:02:27]} 4. c4 {[%clk 0:02:44]}  e6 {[%clk 0:02:27]} 5. Nc3 {[%clk 0:02:43]}  Bb4 {[%clk 0:02:25]} 6. Qb3 {[%clk 0:02:42]}  Bxc3+ {[%clk 0:02:22]} 7. bxc3 {[%clk 0:02:41]}  dxc4 {[%clk 0:02:18]} 8. Bxc4 {[%clk 0:02:10]}  Bxf3 {[%clk 0:02:18]} 9. gxf3 {[%clk 0:02:09]}  Na5 {[%clk 0:02:19]} 10. Qa4+ {[%clk 0:02:01]}  c6 {[%clk 0:02:19]} 11. Be2 {[%clk 0:02:02]}  b5 {[%clk 0:02:17]} 12. Qb4 {[%clk 0:01:58]}  Ne7 {[%clk 0:02:15]} 13. e4 {[%clk 0:01:57]}  Nb7 {[%clk 0:02:10]} 14. a4 {[%clk 0:01:51]}  a6 {[%clk 0:02:04]} 15. Be3 {[%clk 0:01:42]}  Qa5 {[%clk 0:02:04]} 16. Qxa5 {[%clk 0:01:40]}  Nxa5 {[%clk 0:02:04]} 17. axb5 {[%clk 0:01:39]}  axb5 {[%clk 0:02:03]} 18. O-O {[%clk 0:01:32]}  O-O {[%clk 0:02:00]} 19. f4 {[%clk 0:01:26]}  f5 {[%clk 0:01:59]} 20. f3 {[%clk 0:01:24]}  Kf7 {[%clk 0:01:58]} 21. Kf2 {[%clk 0:01:21]}  Nb3 {[%clk 0:01:49]} 22. Rab1 {[%clk 0:01:16]}  Ra3 {[%clk 0:01:47]} 23. Rb2 {[%clk 0:01:08]}  Na5 {[%clk 0:01:42]} 24. Rc1 {[%clk 0:01:08]}  Rb8 {[%clk 0:01:37]} 25. c4 {[%clk 0:00:48]}  b4 {[%clk 0:01:36]} 26. c5 {[%clk 0:00:40]}  b3 {[%clk 0:01:15]} 27. Rcb1 {[%clk 0:00:35]}  Ra2 {[%clk 0:01:02]} 28. Bd2 {[%clk 0:00:33]}  Ng6 {[%clk 0:00:53]} 29. Kg3 {[%clk 0:00:29]}  h5 {[%clk 0:00:50]} 30. h4 {[%clk 0:00:28]}  Ra8 {[%clk 0:00:39]} 31. Bxa5 {[%clk 0:00:26]}  R8xa5 {[%clk 0:00:39]} 32. Bc4 {[%clk 0:00:24]}  Rxb2 {[%clk 0:00:31]} 33. Rxb2 {[%clk 0:00:23]}  Ra4 {[%clk 0:00:31]} 34. Bxb3 {[%clk 0:00:17]}  Rxd4 {[%clk 0:00:30]} 35. exf5 {[%clk 0:00:18]}  Nxf4 {[%clk 0:00:30]} 36. fxe6+ {[%clk 0:00:16]}  Kf6 {[%clk 0:00:29]} 37. Ra2 {[%clk 0:00:09]}  Ng6 {[%clk 0:00:15]} 38. Ra7 {[%clk 0:00:00]}  Ne7 {[%clk 0:00:15]} 0-1


[Site "https://www.chess.com"]

[Event "Titled Tuesday Blitz May 9 Late 2023"]
[White "De Souza, Cristiano Gomes"]
[Black "Hartikainen, Jarmo"]
[WhiteFideId "2151758"]
[BlackFideId "503134"]
[WhiteElo "2068"]
[BlackElo "2091"]
[Result "1-0"]
[Round "06"]
[TimeControl "180+2"]
[Date "2023.05.09"]
[WhiteClock "0:01:05"]
[BlackClock "0:00:00"]

1. d4 {[%clk 0:02:56]}  Nf6 {[%clk 0:02:58]} 2. c4 {[%clk 0:02:55]}  g6 {[%clk 0:02:59]} 3. Nf3 {[%clk 0:02:55]}  Bg7 {[%clk 0:02:58]} 4. Nc3 {[%clk 0:02:55]}  d5 {[%clk 0:02:57]} 5. Bf4 {[%clk 0:02:53]}  O-O {[%clk 0:02:55]} 6. e3 {[%clk 0:02:52]}  c5 {[%clk 0:02:54]} 7. dxc5 {[%clk 0:02:52]}  dxc4 {[%clk 0:02:47]} 8. Bxc4 {[%clk 0:02:50]}  Nbd7 {[%clk 0:02:25]} 9. b4 {[%clk 0:02:41]}  Nh5 {[%clk 0:02:18]} 10. Rc1 {[%clk 0:02:35]}  Nxf4 {[%clk 0:02:16]} 11. exf4 {[%clk 0:02:35]}  a5 {[%clk 0:02:11]} 12. a3 {[%clk 0:02:34]}  axb4 {[%clk 0:02:00]} 13. axb4 {[%clk 0:02:33]}  Ra3 {[%clk 0:01:39]} 14. Nb5 {[%clk 0:02:29]}  Ra8 {[%clk 0:01:03]} 15. O-O {[%clk 0:02:28]}  Nf6 {[%clk 0:01:02]} 16. Ne5 {[%clk 0:02:25]}  Bf5 {[%clk 0:00:56]} 17. Qe2 {[%clk 0:02:12]}  Qc8 {[%clk 0:00:48]} 18. Nd4 {[%clk 0:01:58]}  Be4 {[%clk 0:00:45]} 19. Rfd1 {[%clk 0:01:40]}  Bd5 {[%clk 0:00:42]} 20. c6 {[%clk 0:01:17]}  bxc6 {[%clk 0:00:35]} 21. Ndxc6 {[%clk 0:01:17]}  Bxc6 {[%clk 0:00:19]} 22. Nxc6 {[%clk 0:01:15]}  Qb7 {[%clk 0:00:12]} 23. Nxe7+ {[%clk 0:01:08]}  Kh8 {[%clk 0:00:12]} 24. Nd5 {[%clk 0:01:07]}  Rfe8 {[%clk 0:00:07]} 25. Qf3 {[%clk 0:01:05]}  Nxd5 {[%clk 0:00:00]} 26. Bxd5 {[%clk 0:01:05]} 1-0


[Site "https://www.chess.com"]

[Event "Titled Tuesday Blitz May 9 Late 2023"]
[White "Chabris, Christopher"]
[Black "ritanovikova"]
[WhiteFideId "2005263"]
[WhiteElo "2334"]
[BlackElo "2189"]
[Result "1-0"]
[Round "06"]
[TimeControl "180+2"]
[Date "2023.05.09"]
[WhiteClock "0:00:17"]
[BlackClock "0:01:00"]

1. e4 {[%clk 0:02:59]}  d5 {[%clk 0:02:57]} 2. exd5 {[%clk 0:02:59]}  Qxd5 {[%clk 0:02:55]} 3. Nc3 {[%clk 0:02:59]}  Qd6 {[%clk 0:02:55]} 4. d4 {[%clk 0:02:59]}  Nf6 {[%clk 0:02:54]} 5. Nf3 {[%clk 0:03:00]}  a6 {[%clk 0:02:51]} 6. g3 {[%clk 0:02:57]}  Bg4 {[%clk 0:02:47]} 7. Bg2 {[%clk 0:02:55]}  e6 {[%clk 0:02:46]} 8. Bf4 {[%clk 0:02:51]}  Qb4 {[%clk 0:02:45]} 9. O-O {[%clk 0:02:45]}  Bd6 {[%clk 0:02:38]} 10. Bxd6 {[%clk 0:02:30]}  Qxd6 {[%clk 0:02:38]} 11. h3 {[%clk 0:02:28]}  Bxf3 {[%clk 0:02:35]} 12. Qxf3 {[%clk 0:02:25]}  c6 {[%clk 0:02:35]} 13. Rad1 {[%clk 0:02:19]}  O-O {[%clk 0:02:34]} 14. Rfe1 {[%clk 0:01:59]}  Nbd7 {[%clk 0:02:33]} 15. Qe3 {[%clk 0:01:50]}  Nb6 {[%clk 0:02:31]} 16. Ne4 {[%clk 0:01:43]}  Nxe4 {[%clk 0:02:30]} 17. Bxe4 {[%clk 0:01:42]}  g6 {[%clk 0:02:29]} 18. h4 {[%clk 0:01:41]}  Nd5 {[%clk 0:02:29]} 19. Qh6 {[%clk 0:01:32]}  Nf6 {[%clk 0:02:26]} 20. Bf3 {[%clk 0:01:27]}  Rfd8 {[%clk 0:02:22]} 21. Kg2 {[%clk 0:01:25]}  Qf8 {[%clk 0:02:21]} 22. Qg5 {[%clk 0:01:22]}  Qg7 {[%clk 0:02:21]} 23. Qc5 {[%clk 0:01:19]}  Qf8 {[%clk 0:02:16]} 24. Qe5 {[%clk 0:01:17]}  Qg7 {[%clk 0:02:14]} 25. c3 {[%clk 0:01:13]}  Nd5 {[%clk 0:02:13]} 26. Qe4 {[%clk 0:01:08]}  Nf6 {[%clk 0:02:12]} 27. Qf4 {[%clk 0:01:06]}  Nd5 {[%clk 0:02:11]} 28. Qg5 {[%clk 0:01:03]}  Qf6 {[%clk 0:02:10]} 29. Re5 {[%clk 0:00:57]}  Qxg5 {[%clk 0:02:09]} 30. hxg5 {[%clk 0:00:56]}  Kg7 {[%clk 0:02:08]} 31. Rh1 {[%clk 0:00:56]}  Rh8 {[%clk 0:02:04]} 32. Re4 {[%clk 0:00:49]}  h6 {[%clk 0:02:04]} 33. gxh6+ {[%clk 0:00:48]}  Rxh6 {[%clk 0:02:03]} 34. Rxh6 {[%clk 0:00:47]}  Kxh6 {[%clk 0:02:04]} 35. c4 {[%clk 0:00:43]}  Nf6 {[%clk 0:02:03]} 36. Re1 {[%clk 0:00:41]}  Rd8 {[%clk 0:02:01]} 37. Rd1 {[%clk 0:00:40]}  e5 {[%clk 0:01:58]} 38. dxe5 {[%clk 0:00:38]}  Rxd1 {[%clk 0:01:57]} 39. Bxd1 {[%clk 0:00:39]}  Nd7 {[%clk 0:01:57]} 40. f4 {[%clk 0:00:36]}  Nc5 {[%clk 0:01:55]} 41. Kf3 {[%clk 0:00:32]}  Nd3 {[%clk 0:01:49]} 42. b3 {[%clk 0:00:28]}  Nc1 {[%clk 0:01:47]} 43. a3 {[%clk 0:00:28]}  Na2 {[%clk 0:01:47]} 44. Ke3 {[%clk 0:00:26]}  g5 {[%clk 0:01:44]} 45. Bc2 {[%clk 0:00:24]}  gxf4+ {[%clk 0:01:42]} 46. gxf4 {[%clk 0:00:24]}  b5 {[%clk 0:01:39]} 47. Kd4 {[%clk 0:00:21]}  Nc1 {[%clk 0:01:33]} 48. Kc5 {[%clk 0:00:19]}  Ne2 {[%clk 0:01:30]} 49. f5 {[%clk 0:00:20]}  Kg5 {[%clk 0:01:28]} 50. e6 {[%clk 0:00:19]}  fxe6 {[%clk 0:01:27]} 51. fxe6 {[%clk 0:00:19]}  Kf6 {[%clk 0:01:24]} 52. Kd6 {[%clk 0:00:18]}  Nd4 {[%clk 0:01:08]} 53. e7 {[%clk 0:00:18]}  Nxc2 {[%clk 0:01:04]} 54. e8=Q {[%clk 0:00:17]}  Nxa3 {[%clk 0:01:04]} 55. Qf8+ {[%clk 0:00:17]}  Kg5 {[%clk 0:01:04]} 56. Ke5 {[%clk 0:00:17]}  bxc4 {[%clk 0:01:04]} 57. Qg7+ {[%clk 0:00:17]}  Kh4 {[%clk 0:01:00]} 58. Kf4 {[%clk 0:00:17]} 1-0


[Site "https://www.chess.com"]

[Event "Titled Tuesday Blitz May 9 Late 2023"]
[White "Phillips, Rene"]
[Black "Stachanczyk, Jacek"]
[WhiteFideId "2056275"]
[BlackFideId "1116657"]
[WhiteElo "2182"]
[BlackElo "2084"]
[Result "1-0"]
[Round "06"]
[TimeControl "180+2"]
[Date "2023.05.09"]
[WhiteClock "0:00:15"]
[BlackClock "0:00:08"]

1. Nf3 {[%clk 0:02:57]}  g6 {[%clk 0:02:52]} 2. d4 {[%clk 0:02:57]}  Nf6 {[%clk 0:02:34]} 3. Bf4 {[%clk 0:02:57]}  d6 {[%clk 0:02:32]} 4. e3 {[%clk 0:02:58]}  Bg7 {[%clk 0:02:32]} 5. h3 {[%clk 0:02:58]}  O-O {[%clk 0:02:32]} 6. Nbd2 {[%clk 0:02:58]}  c5 {[%clk 0:02:30]} 7. c3 {[%clk 0:02:58]}  Be6 {[%clk 0:02:30]} 8. Bc4 {[%clk 0:02:53]}  Bxc4 {[%clk 0:02:08]} 9. Nxc4 {[%clk 0:02:53]}  b5 {[%clk 0:02:08]} 10. Ncd2 {[%clk 0:02:49]}  Nd5 {[%clk 0:02:00]} 11. Bg3 {[%clk 0:02:40]}  cxd4 {[%clk 0:01:57]} 12. cxd4 {[%clk 0:02:32]}  Qb6 {[%clk 0:01:36]} 13. Qb3 {[%clk 0:02:30]}  Nf6 {[%clk 0:01:31]} 14. Rc1 {[%clk 0:02:27]}  Nbd7 {[%clk 0:01:30]} 15. O-O {[%clk 0:02:20]}  Rac8 {[%clk 0:01:29]} 16. Rc2 {[%clk 0:02:12]}  Rc6 {[%clk 0:01:13]} 17. Rfc1 {[%clk 0:02:04]}  Rfc8 {[%clk 0:01:12]} 18. Ng5 {[%clk 0:01:57]}  Rxc2 {[%clk 0:01:06]} 19. Qxf7+ {[%clk 0:00:48]}  Kh8 {[%clk 0:01:05]} 20. Rxc2 {[%clk 0:00:45]}  Rxc2 {[%clk 0:01:06]} 21. Ne6 {[%clk 0:00:43]}  Bf8 {[%clk 0:00:18]} 22. Nxf8 {[%clk 0:00:34]}  Nxf8 {[%clk 0:00:18]} 23. Qxf8+ {[%clk 0:00:31]}  Ng8 {[%clk 0:00:18]} 24. Ne4 {[%clk 0:00:22]}  h6 {[%clk 0:00:11]} 25. Bf4 {[%clk 0:00:19]}  Qc6 {[%clk 0:00:09]} 26. Bxh6 {[%clk 0:00:17]}  Rc1+ {[%clk 0:00:08]} 27. Kh2 {[%clk 0:00:15]}  Qxe4 {[%clk 0:00:08]} 28. Qg7# {[%clk 0:00:15]} 1-0


[Site "https://www.chess.com"]